bitfinex-derivatives/quotes_ETHF0:USTF0_20250518
["timestamp","ask_amount","ask_price","bid_price","bid_amount"]
[1747599222773,3.2078,2369.1,2368.5,4.71057765]
[1747599223068,3.2078,2369.1,2368.6,8.681]
[1747599223378,3.2078,2369.1,2368.7,5.68153195]
[1747599223579,3.2078,2369.1,2368.8,8.1621]
[1747599223773,3.2078,2369.1,2368.7,4.83757195]
[1747599223977,3.2078,2368.8,2368.6,0.844]
[1747599224171,8.3722,2369.0,2368.3,11.3699]
[1747599224377,3.2078,2369.1,2368.7,4.72184075]
[1747599224577,3.2078,2369.1,2368.8,8.1621]
[1747599224780,3.2078,2369.1,2368.8,9.00604]
[1747599225481,3.2078,2369.1,2368.8,8.1621]
[1747599227278,6.250018,2370.0,2368.9,47.26390552]
[1747599227480,14.394418,2370.0,2369.3,2.10944]
[1747599227781,14.394418,2370.0,2369.6,0.84365]
[1747599227984,6.250018,2370.0,2369.7,8.486]
[1747599228185,6.250018,2370.0,2369.7,4.72890552]
[1747599228373,8.1444,2369.9,2369.0,8.486]
[1747599228573,0.84371,2369.5,2368.3,3.2078]
[1747599228770,0.84371,2369.5,2369.0,4.83164973]
[1747599228981,3.2078,2369.5,2368.8,0.84392]
[1747599229181,8.1444,2369.4,2368.7,8.486]
[1747599229379,8.1444,2369.4,2368.9,4.59998313]
[1747599229579,8.1444,2369.4,2369.0,8.6609]
[1747599229779,3.2078,2369.5,2369.0,8.6609]
[1747599229978,11.11,2369.5,2369.0,8.6609]
[1747599230178,11.11,2369.5,2369.1,4.59998313]
[1747599230379,0.84387,2369.1,2368.5,8.6609]
[1747599230577,3.2078,2368.8,2368.5,4.65095642]
[1747599230779,7.9022,2368.7,2368.5,4.65095642]
[1747599230973,7.9022,2368.7,2368.3,0.84411]
[1747599231177,7.9022,2368.7,2368.3,9.50501]
[1747599231381,3.2078,2368.5,2367.8,4.65031513]
[1747599231573,3.2078,2368.5,2367.4,4.60820767]
[1747599231574,11.11,2368.4,2367.4,2.49712767]
[1747599231885,3.2078,2367.7,2367.6,4.65031513]
[1747599232287,11.11,2367.7,2367.2,4.65031513]
[1747599232487,11.95435,2367.7,2366.8,8.6609]
[1747599232683,4.05231,2367.3,2366.8,8.6609]
[1747599232886,3.2078,2367.1,2366.5,44.61940188]
[1747599233082,8.2052,2367.0,2366.6,7.9401]
[1747599233288,8.2052,2367.0,2366.6,12.53081498]
[1747599233479,8.2052,2367.0,2366.6,7.9401]
[1747599233784,8.2052,2367.0,2366.6,11.1479]
[1747599233980,3.2078,2367.4,2366.7,4.86564838]
[1747599234180,0.84449,2367.3,2366.7,4.86564838]
[1747599234381,8.2052,2367.3,2366.7,4.86564838]
[1747599234683,3.2078,2367.7,2366.7,9.86564838]
[1747599234879,3.2078,2367.7,2366.9,3.2078]
[1747599235183,3.2078,2367.7,2367.1,0.84454]
[1747599235685,3.2078,2367.7,2367.2,4.59796609]
[1747599235884,3.2078,2367.7,2367.3,8.693]
[1747599236187,3.2078,2367.7,2367.4,4.59796609]
[1747599236389,0.84441,2367.5,2367.4,4.59796609]
[1747599236685,0.84454,2367.2,2366.3,4.05262]
[1747599236884,11.4007,2367.4,2366.6,8.693]
[1747599237080,3.2078,2367.1,2366.7,4.66937684]
[1747599237285,3.2078,2367.1,2366.8,8.693]
[1747599237492,11.4007,2367.4,2366.9,0.84463]
[1747599237688,3.2078,2367.8,2367.4,0.84442]
[1747599237986,0.00585774,2368.4,2367.9,0.84425]
[1747599238181,0.00585774,2368.4,2367.5,16.53545875]
[1747599238487,0.00585774,2368.4,2367.9,0.84426]
[1747599238677,0.00585774,2368.4,2368.0,8.4866]
[1747599238883,8.66665774,2368.4,2368.0,13.30430033]
[1747599239383,0.00585774,2368.4,2368.3,0.84413]
[1747599239588,0.00585774,2368.4,2368.3,5.84413]
[1747599239788,8.6608,2369.0,2368.3,9.44276055]
[1747599240087,3.2078,2368.9,2368.3,4.44276055]
[1747599240288,3.2078,2368.6,2368.0,8.4866]
[1747599240489,3.2078,2368.3,2367.9,42.551]
[1747599240787,8.6608,2368.2,2367.9,42.551]
[1747599241586,8.6608,2368.2,2368.0,4.8332187]
[1747599241782,9.50498,2368.2,2367.5,0.84441]
[1747599241989,3.2078,2368.0,2367.4,0.84444]
[1747599242189,3.2078,2367.7,2367.3,12.9642187]
[1747599242376,11.7102,2367.9,2367.3,12.9642187]
[1747599242686,3.2078,2367.6,2366.9,44.21839469]
[1747599242886,8.5024,2367.5,2367.0,8.131]
[1747599243088,11.7102,2367.5,2367.0,12.52829708]
[1747599243884,3.2078,2367.2,2367.0,4.39729708]
[1747599244190,3.2078,2367.2,2366.9,1.66739469]
[1747599244191,4.05234,2367.2,2366.9,1.66739469]
[1747599244387,8.5024,2367.1,2366.9,1.66739469]
[1747599244591,2.11051,2368.1,2366.7,3.2078]
[1747599244889,3.2078,2367.3,2366.8,13.72792877]
[1747599245085,0.84452,2367.2,2366.8,4.78148877]
[1747599245390,3.2078,2367.9,2367.4,0.84443]
[1747599245588,3.2078,2367.9,2366.8,3.2078]
[1747599245987,3.2078,2367.9,2367.1,3.2078]
[1747599246188,3.2078,2367.2,2366.9,4.70259207]
[1747599246391,3.2078,2367.2,2366.6,4.80192]
[1747599246592,0.84457,2367.1,2366.4,0.84481]
[1747599246780,9.43277,2367.1,2366.4,0.84481]
[1747599246985,11.796,2367.1,2366.4,4.66172351]
[1747599247292,0.84459,2367.0,2366.4,5.50652351]
[1747599247490,8.5882,2366.9,2366.4,5.50652351]
[1747599247687,8.5882,2366.9,2366.4,4.66172351]
[1747599247886,8.5882,2366.9,2366.5,0.84476]
[1747599248182,8.5882,2366.9,2366.6,4.74688101]
[1747599248389,0.84459,2367.0,2366.6,4.74688101]
[1747599248587,8.0592,2367.0,2366.3,3.2078]
[1747599248889,3.2078,2366.7,2366.3,3.2078]
[1747599249090,8.0592,2366.6,2366.3,3.2078]
[1747599249690,3.2078,2367.6,2366.6,2.11179]
[1747599249890,11.267,2367.6,2367.0,0.84456]
[1747599250094,11.267,2367.6,2366.7,7.97965255]
[1747599250394,11.267,2367.6,2367.1,5.61639255]
[1747599250584,3.2078,2367.3,2366.8,4.89183887]
[1747599250789,0.84471,2366.7,2366.2,3.2078]
[1747599251088,3.2078,2367.1,2366.2,3.2078]
[1747599251284,3.2078,2366.7,2366.3,0.84481]
[1747599251492,3.2078,2366.7,2366.3,4.81852373]
[1747599251689,3.2078,2366.7,2366.3,5.66335373]
[1747599251994,3.2078,2367.4,2366.7,0.84468]
[1747599252185,3.2078,2366.9,2366.3,4.81852373]
[1747599252392,0.84472,2366.7,2365.8,14.672]
[1747599252589,3.2078,2366.5,2365.8,6.2658]
[1747599252892,8.6064,2366.4,2366.1,4.51694014]
[1747599253087,8.6064,2366.4,2366.1,5.36183014]
[1747599253294,8.6064,2366.4,2366.1,12.92314014]
[1747599253485,8.6064,2366.4,2365.3,6.20498]
[1747599253486,9.45123,2366.4,2365.7,0.84503]
[1747599253691,3.2078,2366.1,2365.7,0.84503]
[1747599253893,3.2078,2366.1,2365.6,8.4062]
[1747599254385,8.3809,2366.0,2365.6,8.4062]
[1747599255993,3.2078,2366.9,2366.2,0.84486]
[1747599256291,8.3809,2366.6,2365.7,8.10139303]
[1747599256488,3.2078,2366.9,2366.5,0.84476]
[1747599256694,1.45170631,2369.8,2366.6,42.569]
[1747599256889,0.08441668,2369.2,2369.1,3.2078]
[1747599257111,3.207792,2368.8,2368.7,3.2078]
[1747599257290,0.08441668,2369.2,2368.7,3.2078]
[1747599257493,3.207792,2368.8,2368.4,3.2078]
[1747599257696,0.08441668,2369.2,2368.7,3.2078]
[1747599258096,0.08441668,2369.2,2369.0,3.2078]
[1747599258297,0.08441668,2369.2,2369.0,4.05166]
[1747599258496,0.08441668,2369.2,2369.1,4.54492999]
[1747599258697,0.08441668,2369.2,2369.1,5.38876999]
[1747599258892,5.32235409,2369.5,2369.1,5.38876999]
[1747599258893,1.45170631,2369.8,2369.1,9.54492999]
[1747599259099,3.207792,2369.6,2369.3,0.84376]
[1747599259409,3.207792,2369.6,2369.5,3.2078]
[1747599259595,1.45170631,2369.8,2369.5,3.2078]
[1747599259902,3.207792,2369.6,2369.5,3.2078]
[1747599260997,1.45170631,2369.8,2369.5,3.2078]
[1747599261203,3.207792,2369.6,2369.5,8.08621313]
[1747599261403,3.207792,2369.6,2369.5,3.2078]
[1747599261599,8.207792,2369.6,2369.5,3.2078]
[1747599261895,0.84376,2369.4,2369.1,3.2078]
[1747599262103,8.77751,2369.5,2369.1,3.2078]
[1747599262397,3.207792,2369.2,2369.1,3.2078]
[1747599264502,3.207792,2369.2,2369.1,11.689]
[1747599264899,7.9499,2369.7,2369.1,11.689]
[1747599265106,3.207792,2369.2,2369.1,3.2078]
[1747599265404,3.2078,2369.2,2368.5,3.2078]
[1747599265798,3.2078,2369.2,2368.6,8.4812]
[1747599265997,3.2078,2369.2,2368.6,9.32521]
[1747599266199,3.2078,2369.2,2368.8,3.2078]
[1747599266400,0.84374,2369.4,2368.8,3.2078]
[1747599266601,5.04388,2369.6,2368.8,4.05174]
[1747599266800,0.84373,2369.5,2368.8,3.2078]
[1747599267005,0.84361,2369.8,2369.1,3.2078]
[1747599267199,0.84365,2369.7,2368.9,0.8439]
[1747599267401,0.84365,2369.7,2369.0,8.1172]
[1747599267601,0.84365,2369.7,2369.1,3.2078]
[1747599267901,0.84361,2369.8,2369.1,3.2078]
[1747599268101,7.4882,2370.3,2369.5,3.2078]
[1747599268303,0.8435,2370.1,2369.5,3.2078]
[1747599268604,7.4882,2370.3,2369.5,3.2078]
[1747599269107,0.84358,2369.9,2369.5,3.2078]
[1747599269305,0.84366,2369.7,2369.1,3.2078]
[1747599269506,4.05134,2370.0,2369.4,3.2078]
[1747599270106,0.84358,2369.9,2369.4,3.2078]
[1747599270708,3.2078,2370.0,2369.4,3.2078]
[1747599271011,4.05134,2370.0,2369.5,12.5581279]
[1747599271211,3.2078,2370.0,2369.5,7.9925]
[1747599271713,3.2078,2370.7,2369.9,3.2078]
[1747599271919,0.84332,2370.6,2370.3,3.2078]
[1747599272118,9.48412,2370.6,2370.3,3.2078]
[1747599272603,0.8433,2370.7,2370.3,3.2078]
[1747599272808,8.6408,2371.0,2370.3,3.2078]
[1747599273009,8.6408,2371.0,2370.6,3.2078]
[1747599273411,8.6408,2371.0,2370.7,8.3465]
[1747599273711,3.2078,2371.3,2370.9,3.2078]
[1747599273909,8.6408,2371.4,2370.9,3.2078]
[1747599274110,0.95688429,2371.8,2371.2,3.2078]
[1747599274417,0.95688429,2371.8,2371.0,13.07902798]
[1747599274418,0.95688429,2371.8,2371.5,3.2078]
[1747599274611,0.95688429,2371.8,2371.6,8.3465]
[1747599274806,0.95688429,2371.8,2371.5,3.2078]
[1747599275012,8.6408,2371.9,2371.5,3.2078]
[1747599275507,11.8486,2371.9,2371.2,3.2078]
[1747599275709,3.2078,2371.4,2370.8,3.2078]
[1747599275913,7.9857,2371.3,2370.6,42.538]
[1747599276215,7.9857,2371.3,2370.8,3.2078]
[1747599276602,0.84299,2371.5,2370.9,12.80575089]
[1747599276806,0.84301,2371.5,2370.9,12.80575089]
[1747599277012,7.9857,2371.4,2370.8,3.2078]
[1747599277513,3.2078,2371.5,2370.9,4.69527276]
[1747599277708,7.9857,2371.3,2370.8,3.2078]
[1747599277910,3.2078,2370.9,2370.2,3.2078]
[1747599278206,3.2078,2370.6,2370.2,3.2078]
[1747599278409,10.27362,2370.5,2369.4,3.2078]
[1747599278611,11.373,2370.5,2369.4,3.2078]
[1747599278913,11.373,2370.5,2369.7,3.2078]
[1747599279113,0.84355,2370.0,2369.5,7.9105]
[1747599279313,8.1652,2369.9,2369.5,7.9105]
[1747599279510,3.2078,2369.8,2369.4,3.2078]
[1747599279715,8.1652,2369.7,2369.3,1.24904709]
[1747599279910,0.84372,2369.5,2369.3,1.24904709]
[1747599280111,8.1652,2369.7,2369.3,1.24904709]
[1747599280411,3.2078,2369.8,2369.3,1.24904709]
[1747599280610,0.84379,2369.3,2369.1,3.2078]
[1747599280922,3.2078,2369.8,2369.1,3.2078]
[1747599281119,0.84374,2369.4,2369.1,3.2078]
[1747599281311,8.1652,2369.7,2369.1,3.2078]
[1747599282117,0.84355,2370.0,2369.5,3.2078]
[1747599282317,0.84357,2369.9,2369.5,3.2078]
[1747599282512,9.08697,2369.9,2369.5,3.2078]
[1747599282712,0.8436,2369.8,2369.5,3.2078]
[1747599282913,0.84362,2369.8,2369.5,3.2078]
[1747599283115,9.08698,2369.9,2369.5,3.2078]
[1747599283313,3.2078,2370.4,2369.5,3.2078]
[1747599283509,0.84349,2370.1,2369.6,8.5621]
[1747599283713,0.84347,2370.2,2369.8,3.2078]
[1747599284119,0.84347,2370.2,2369.6,8.5621]
[1747599284418,3.2078,2370.0,2369.1,3.2078]
[1747599284612,3.2078,2369.7,2369.1,3.2078]
[1747599284814,0.84362,2369.8,2369.2,4.43140664]
[1747599285012,8.3091,2370.1,2369.7,3.2078]
[1747599285213,8.3091,2370.1,2369.8,7.9844]
[1747599285413,7.3385,2370.7,2370.0,3.2078]
[1747599285608,8.3091,2370.6,2370.0,3.2078]
[1747599285809,0.84339,2370.4,2370.1,7.9844]
[1747599286008,0.84336,2370.5,2370.1,7.9844]
[1747599286713,8.3091,2370.6,2370.1,7.9844]
[1747599287214,3.2078,2371.1,2370.3,3.2078]
[1747599287419,11.6629,2371.1,2370.3,3.2078]
[1747599287619,0.84336,2370.5,2370.3,3.2078]
[1747599287818,0.84333,2370.6,2370.3,3.2078]
[1747599288119,2.10793,2371.0,2370.1,7.9844]
[1747599288120,3.2078,2370.7,2370.1,7.9844]
[1747599288416,5.31626,2370.4,2369.6,3.2078]
[1747599288719,3.2078,2370.1,2369.5,8.5289]
[1747599288919,0.84357,2369.9,2369.5,8.5289]
[1747599289110,0.8436,2369.8,2369.5,8.5289]
[1747599289313,0.84365,2369.7,2369.5,8.5289]
[1747599289513,0.84362,2369.8,2369.5,8.5289]
[1747599289720,0.8436,2369.8,2369.5,8.5289]
[1747599289925,8.4551,2370.0,2369.3,3.2078]
[1747599289926,2.1089,2369.9,2369.3,3.2078]
[1747599290219,2.1089,2369.9,2368.7,7.9889]
[1747599290220,8.4551,2369.7,2368.9,3.2078]
[1747599290408,0.84379,2369.3,2368.9,3.2078]
[1747599290612,0.84379,2369.3,2369.0,8.1215]
[1747599290812,11.6629,2369.7,2369.0,8.1215]
[1747599291007,8.4551,2369.7,2369.0,8.1215]
[1747599291413,3.2078,2369.4,2368.9,3.2078]
[1747599291616,8.6742,2369.3,2368.9,3.2078]
[1747599291818,9.518,2369.3,2369.0,8.1215]
[1747599292119,8.6742,2369.3,2369.0,8.1215]
[1747599292421,0.84383,2369.2,2369.0,8.1215]
[1747599292920,8.6742,2369.3,2369.0,8.1215]
[1747599293220,0.84375,2369.4,2369.0,8.1215]
[1747599293221,3.2078,2369.7,2369.0,8.1215]
[1747599293415,8.1217,2369.6,2369.0,8.1215]
[1747599293620,0.84379,2369.3,2369.0,8.1215]
[1747599293918,0.84384,2369.2,2369.0,8.1215]
[1747599294119,0.84387,2369.1,2368.6,3.2078]
[1747599294319,8.1217,2369.6,2368.6,3.2078]
[1747599294521,0.84381,2369.2,2368.7,8.2905]
[1747599294719,3.2078,2369.4,2368.7,8.2905]
[1747599294923,0.84383,2369.2,2368.7,8.2905]
[1747599295310,8.1217,2369.3,2368.7,8.2905]
[1747599295516,0.84385,2369.1,2368.7,8.2905]
[1747599295814,0.84382,2369.2,2368.7,8.2905]
[1747599296422,8.1217,2369.3,2368.7,8.2905]
[1747599296623,0.84383,2369.2,2368.7,8.2905]
[1747599296922,0.84385,2369.1,2368.7,8.2905]
[1747599297121,0.84382,2369.2,2368.7,8.2905]
[1747599297319,0.84385,2369.1,2368.7,8.2905]
[1747599297715,0.84383,2369.2,2368.7,8.2905]
[1747599298120,0.84387,2369.1,2368.7,8.2905]
[1747599298418,8.1217,2369.3,2368.9,3.2078]
[1747599298619,0.84385,2369.1,2368.9,3.2078]
[1747599298819,8.1217,2369.3,2368.9,3.2078]
[1747599299121,0.84384,2369.2,2368.9,3.2078]
[1747599299526,8.1217,2369.3,2368.9,3.2078]
[1747599299720,8.96547,2369.3,2369.0,7.9981]
[1747599300221,0.84382,2369.2,2369.0,7.9981]
[1747599300429,0.84384,2369.1,2369.0,7.9981]
[1747599300727,2.10912,2369.7,2369.0,7.9981]
[1747599300728,3.2078,2370.3,2369.1,4.42537441]
[1747599300924,8.4276,2370.7,2370.0,3.2078]
[1747599301115,8.4276,2370.7,2370.1,7.9981]
[1747599301321,9.27089,2370.7,2370.1,7.9981]
[1747599301515,0.84335,2370.5,2370.1,7.9981]
[1747599301720,0.84341,2370.4,2369.6,4.05145]
[1747599302020,3.2078,2369.9,2369.3,12.72782016]
[1747599302219,0.84374,2369.4,2369.3,4.72972016]
[1747599302423,3.2078,2369.6,2369.2,1.24904709]
[1747599302927,8.4152,2370.0,2369.3,3.2078]
[1747599303228,3.2078,2370.5,2369.9,3.2078]
[1747599303427,3.2078,2370.0,2369.4,7.45]
[1747599303626,3.2078,2370.0,2369.0,1.66739469]
[1747599303627,3.2078,2369.5,2369.1,1.24904709]
[1747599303823,0.84366,2369.7,2369.1,1.24904709]
[1747599304021,8.4152,2369.6,2369.2,8.3688]
[1747599304225,0.84377,2369.4,2369.1,1.24904709]
[1747599304532,0.84381,2369.2,2369.1,1.24904709]
[1747599304723,11.623,2369.6,2369.1,1.24904709]
[1747599305425,0.84381,2369.2,2369.1,1.24904709]
[1747599305627,11.623,2369.6,2369.1,1.24904709]
[1747599305823,12.46668,2369.6,2369.1,1.24904709]
[1747599306128,0.84376,2369.4,2369.1,1.24904709]
[1747599306331,8.4152,2369.6,2369.1,1.24904709]
[1747599306632,8.0816,2369.3,2369.1,1.24904709]
[1747599307020,12.13319,2369.3,2369.1,1.24904709]
[1747599307226,11.2894,2369.3,2369.0,8.3688]
[1747599307427,6.09789,2370.1,2369.0,8.3688]
[1747599307428,3.2078,2369.7,2369.0,8.3688]
[1747599307632,8.0816,2369.8,2369.0,8.3688]
[1747599307831,8.0816,2369.8,2369.0,11.5766]
[1747599308226,0.84342,2370.3,2369.7,3.2078]
[1747599308426,8.0816,2370.4,2369.8,8.77747]
[1747599308733,0.84356,2369.9,2369.8,4.52265741]
[1747599308925,0.84355,2370.0,2369.4,3.2078]
[1747599309131,8.6692,2370.0,2369.5,8.1442]
[1747599309332,3.63843033,2370.8,2369.7,4.05141]
[1747599309333,4.05116,2370.5,2369.7,4.05141]
[1747599309535,8.6692,2370.4,2370.0,3.2078]
[1747599310032,8.6692,2370.4,2369.8,8.1442]
[1747599310234,3.2078,2370.0,2369.8,8.1442]
[1747599310436,0.84346,2370.2,2369.8,8.1442]
[1747599310729,11.877,2370.1,2369.8,8.1442]
[1747599310932,12.7205,2370.1,2369.8,8.1442]
[1747599311133,11.877,2370.1,2369.8,8.1442]
[1747599311328,11.877,2370.1,2369.4,1.24904709]
[1747599311530,11.877,2370.1,2369.5,8.1442]
[1747599311732,3.2078,2370.5,2369.9,3.2078]
[1747599311932,8.5005,2370.6,2370.0,8.5875]
[1747599312239,0.95688429,2370.7,2370.6,0.84331]
[1747599312533,1.27491687,2371.0,2370.9,0.8432]
[1747599312836,1.27491687,2371.0,2370.9,8.59481772]
[1747599313029,3.86479567,2371.4,2370.9,12.75161772]
[1747599313230,3.2078,2372.3,2371.3,3.2078]
[1747599313536,1.28393614,2372.2,2371.6,3.2078]
[1747599313740,1.28393614,2372.2,2371.7,8.5875]
[1747599313931,1.28393614,2372.2,2371.7,13.04845953]
[1747599314429,1.28393614,2372.2,2371.8,8.5875]
[1747599314634,2.12669614,2372.2,2371.8,8.5875]
[1747599314933,1.28393614,2372.2,2372.1,3.2078]
[1747599315138,1.28393614,2372.2,2371.9,4.73189687]
[1747599315336,1.28393614,2372.2,2372.0,8.4026]
[1747599315938,1.28393614,2372.2,2372.1,8.56918615]
[1747599316431,1.60492018,2372.5,2372.4,0.84267]
[1747599316637,1.60492018,2372.5,2372.4,4.05047]
[1747599316838,1.60492018,2372.5,2372.4,12.84434721]
[1747599317232,1.60492018,2372.5,2372.4,13.68701721]
[1747599317834,1.45170631,2373.1,2372.4,12.84434721]
[1747599318035,1.45170631,2373.1,2372.9,3.2078]
[1747599318234,1.45170631,2373.1,2373.0,8.3148]
[1747599318435,1.45170631,2373.1,2373.0,12.90946758]
[1747599318941,1.45170631,2373.1,2373.0,13.75192758]
[1747599319142,1.69365737,2373.5,2373.4,0.84231]
[1747599319338,3.2078,2375.2,2373.4,45.7128]
[1747599319533,3.2078,2374.4,2373.8,3.2078]
[1747599319738,4.04978,2374.4,2373.9,8.3148]
[1747599320043,3.2078,2374.4,2373.9,13.05242978]
[1747599320346,3.80608395,2375.0,2374.2,3.2078]
[1747599320643,0.84177,2375.0,2374.3,12.8554851]
[1747599320846,8.6942,2375.0,2374.3,12.8554851]
[1747599321236,8.6942,2375.0,2374.5,0.84191]
[1747599321436,8.6942,2375.0,2374.6,8.4715]
[1747599321636,8.6942,2375.0,2374.6,13.14674921]
[1747599321839,8.6942,2375.0,2374.6,8.4715]
[1747599322039,3.2078,2375.1,2374.6,8.4715]
[1747599322240,3.2078,2375.1,2374.7,4.67524921]
[1747599322445,9.53576,2375.6,2374.8,11.6793]
[1747599322645,3.2078,2375.4,2374.8,8.4715]
[1747599322843,9.53575,2375.6,2374.8,9.31331]
[1747599323040,3.2078,2375.3,2374.9,7.88304921]
[1747599323342,3.2078,2375.3,2375.0,8.4715]
[1747599323541,3.2078,2375.3,2374.9,7.88304921]
[1747599323841,3.2078,2375.0,2373.5,3.2078]
[1747599324041,2.10432,2375.1,2372.1,1.66739469]
[1747599324042,0.84231,2373.5,2372.9,3.2078]
[1747599324243,3.2078,2373.4,2373.1,4.87455706]
[1747599324441,11.4975,2373.4,2372.8,8.4265]
[1747599324749,8.2897,2373.4,2373.2,1.24850561]
[1747599324944,3.2078,2373.7,2373.2,1.24850561]
[1747599325848,8.2897,2373.6,2373.2,1.24850561]
[1747599326244,3.2078,2373.8,2373.2,1.24850561]
[1747599326546,3.2078,2374.1,2373.4,3.2078]
[1747599326741,3.2078,2374.1,2373.9,0.84213]
[1747599326938,9.41358,2374.7,2374.0,11.251]
[1747599327135,8.5717,2374.7,2374.0,11.251]
[1747599328048,0.8419,2374.6,2374.0,11.251]
[1747599328347,8.5717,2374.5,2374.0,11.251]
[1747599328943,8.5717,2374.5,2374.0,8.0432]
[1747599329146,3.2078,2374.4,2373.4,3.2078]
[1747599329343,8.5717,2374.3,2373.4,11.251]
[1747599329549,0.84207,2374.1,2373.4,11.251]
[1747599329749,9.41382,2374.0,2373.5,4.59660252]
[1747599329949,8.5717,2374.0,2373.5,4.59660252]
[1747599330147,8.5717,2374.0,2373.6,8.1112]
[1747599330853,8.5717,2374.0,2373.4,3.2078]
[1747599331040,3.2078,2374.2,2373.7,4.4974741]
[1747599331242,8.6848,2374.1,2373.7,4.4974741]
[1747599331439,8.6848,2374.1,2373.4,11.319]
[1747599331440,0.84211,2374.0,2373.4,11.319]
[1747599331646,8.6848,2373.9,2373.4,11.319]
[1747599331843,4.04982,2374.3,2373.7,3.2078]
[1747599332162,4.04981,2374.3,2373.8,8.1112]
[1747599332345,8.6848,2374.2,2373.8,8.1112]
[1747599332650,9.52684,2374.2,2373.8,8.1112]
[1747599332838,8.6848,2374.2,2373.8,8.1112]
[1747599333044,0.84209,2374.1,2373.3,4.05013]
[1747599333246,3.2078,2373.8,2372.8,0.84252]
[1747599333445,4.05015,2373.3,2373.2,4.74913802]
[1747599333646,3.2078,2373.3,2372.8,4.63767404]
[1747599333850,3.2078,2372.9,2372.1,8.6618]
[1747599334049,0.84264,2372.5,2372.1,8.6618]
[1747599334251,3.2078,2372.3,2370.7,2.49712767]
[1747599334553,3.2078,2371.4,2371.0,8.6618]
[1747599334849,3.2078,2371.4,2370.7,2.49712767]
[1747599334850,0.8431,2371.2,2370.7,2.49712767]
[1747599335254,5.8431,2371.2,2370.7,2.49712767]
[1747599335954,5.0,2371.2,2370.7,2.49712767]
[1747599336142,4.05104,2370.8,2370.7,2.49712767]
[1747599336345,0.84334,2370.5,2370.4,3.32164545]
[1747599336649,0.84358,2369.9,2369.1,4.57914466]
[1747599336846,3.2078,2369.7,2369.2,8.2091]
[1747599337148,0.8437,2369.5,2369.1,4.57914466]
[1747599337348,8.0597,2369.4,2369.1,1.37134466]
[1747599338256,3.2078,2369.5,2369.1,1.37134466]
[1747599338450,8.0597,2369.4,2369.1,1.37134466]
[1747599338942,3.2078,2369.2,2369.1,1.37134466]
[1747599339145,8.0597,2369.4,2369.1,1.37134466]
[1747599339146,6.988,2373.1,2369.1,5.0]
[1747599339349,3.2078,2370.8,2369.8,3.2078]
[1747599339551,3.2078,2370.4,2369.9,7.9856]
[1747599339755,8.2595,2370.3,2369.9,7.9856]
[1747599340049,8.2595,2370.3,2369.5,3.2078]
[1747599340253,3.2078,2370.2,2369.5,3.2078]
[1747599340454,9.103,2370.1,2369.5,3.2078]
[1747599340649,3.2078,2369.8,2369.2,3.2078]
[1747599340846,3.2078,2369.9,2369.3,7.9856]
[1747599341061,8.2595,2369.7,2369.2,3.2078]
[1747599342954,8.2595,2369.7,2369.3,8.6166]
[1747599343658,3.2078,2370.2,2369.5,3.2078]
[1747599343859,8.2009,2370.1,2369.5,3.2078]
[1747599344055,3.2078,2370.6,2369.8,3.2078]
[1747599344358,0.84344,2370.3,2369.8,3.2078]
[1747599344750,8.2009,2370.2,2369.8,3.2078]
[1747599345059,8.2009,2370.2,2369.6,8.6166]
[1747599345248,31.4302,2371.0,2370.1,3.2078]
[1747599345449,7.9775,2370.9,2370.1,3.2078]
[1747599345748,7.9775,2370.9,2370.4,3.2078]
[1747599346053,7.9775,2370.9,2370.5,8.4638]
[1747599346560,4.05077,2371.6,2370.7,4.05105]
[1747599346755,4.1993,2371.9,2371.1,3.2078]
[1747599346951,1.14248542,2372.1,2372.0,0.84281]
[1747599347160,1.14248542,2372.1,2372.0,4.05061]
[1747599347355,1.14248542,2372.1,2371.7,3.2078]
[1747599347559,3.2078,2372.0,2371.4,3.2078]
[1747599347750,11.1853,2372.0,2371.4,3.2078]
[1747599348062,0.84296,2371.6,2371.1,3.2078]
[1747599348256,1.14248542,2372.1,2371.5,3.2078]
[1747599348462,3.11267662,2372.4,2371.9,3.2078]
[1747599348648,3.2078,2372.6,2371.9,3.2078]
[1747599348856,8.127,2372.7,2371.9,3.2078]
[1747599349059,8.127,2372.7,2372.0,8.3034]
[1747599349260,3.2078,2372.1,2371.5,3.2078]
[1747599349558,4.05052,2372.3,2371.8,3.2078]
[1747599349762,8.127,2372.2,2371.8,3.2078]
[1747599350352,8.96975,2372.2,2371.5,3.2078]
[1747599350557,3.2078,2372.1,2371.2,3.2078]
[1747599350860,8.127,2372.0,2370.7,12.89219318]
[1747599351157,3.2078,2371.9,2370.9,3.2078]
[1747599351359,3.2078,2371.6,2371.0,8.4788]
[1747599351551,8.4518,2371.8,2371.2,3.2078]
[1747599351759,3.2078,2372.8,2371.5,3.2078]
[1747599351963,3.2078,2372.8,2371.9,3.2078]
[1747599352164,0.84266,2372.5,2372.0,8.4788]
[1747599352467,8.4518,2372.4,2372.0,8.4788]
[1747599352657,4.1993,2373.0,2372.3,0.84268]
[1747599352864,3.2078,2373.2,2372.5,3.2078]
[1747599353057,8.4518,2373.1,2372.6,8.4788]
[1747599353262,3.2078,2373.6,2372.9,3.2078]
[1747599353458,7.5411,2374.1,2373.4,0.84231]
[1747599353761,4.47278232,2374.7,2373.7,3.2078]
[1747599353960,8.4518,2374.3,2373.7,3.2078]
[1747599354160,3.2078,2374.0,2373.5,8.4788]
[1747599354364,8.2154,2373.9,2373.1,3.2078]
[1747599354762,0.8422,2373.8,2373.2,3.2078]
[1747599354963,8.2154,2373.7,2373.3,8.2495]
[1747599355361,8.2154,2373.7,2373.3,11.4573]
[1747599356164,4.04992,2374.0,2373.3,11.4573]
[1747599356469,8.2154,2373.9,2373.6,3.2078]